bitfinex/quotes_SOLUSD_20250722
["timestamp","ask_amount","ask_price","bid_price","bid_amount"]
[1753162685338,11.09885386,197.77,197.72,37.38]
[1753162685530,11.09885386,197.76,197.72,37.38]
[1753162686120,27.88353783,197.75,197.72,37.38]
[1753162686512,16.78468397,197.75,197.72,38.07]
[1753162687041,11.09885386,197.77,197.73,0.69]
[1753162687220,11.09885386,197.77,197.73,5.05740046]
[1753162687420,27.88353783,197.78,197.74,0.69]
[1753162687615,26.0,197.79,197.74,0.69]
[1753162687832,11.09885386,197.78,197.72,42.43763462]
[1753162688145,11.09885386,197.77,197.72,43.12763462]
[1753162688323,26.0,197.79,197.73,0.69]
[1753162688525,11.09885386,197.79,197.73,0.69]
[1753162688835,11.09885386,197.76,197.72,37.38]
[1753162689316,11.09885386,197.75,197.72,37.38]
[1753162689820,0.06,197.82,197.74,11.09885386]
[1753162690031,0.06,197.82,197.8,11.09885386]
[1753162690218,0.06,197.82,197.77,26.0]
[1753162690219,0.06,197.82,197.81,48.47885386]
[1753162690417,0.06,197.82,197.81,49.16885386]
[1753162690631,0.06,197.82,197.81,37.38]
[1753162691316,0.06,197.82,197.81,54.22421]
[1753162691931,12.01084998,198.01,197.91,11.09885386]
[1753162692240,12.01084998,198.01,197.93,11.09885386]
[1753162692241,11.09885386,197.99,197.93,11.09885386]
[1753162692439,11.09885386,197.99,197.92,49.14885386]
[1753162692643,11.09885386,197.98,197.92,49.14885386]
[1753162693548,11.09885386,197.98,197.92,54.20135028]
[1753162693918,11.09885386,197.94,197.92,37.36]
[1753162694239,16.78468397,197.92,197.85,0.69]
[1753162694432,11.09885386,197.87,197.85,37.36]
[1753162694820,0.67,197.9,197.83,37.36]
[1753162695122,11.09885386,197.9,197.84,11.09885386]
[1753162695315,11.09885386,197.92,197.86,5.05407864]
[1753162695518,11.09885386,197.91,197.87,37.36]
[1753162695716,11.09885386,197.9,197.87,37.36]
[1753162696149,11.09885386,197.92,197.87,38.05]
[1753162696822,11.09885386,197.91,197.87,37.36]
[1753162697644,0.06,197.98,197.9,11.09885386]
[1753162697827,0.06,197.98,197.95,11.09885386]
[1753162698147,0.06,197.98,197.96,37.36]
[1753162698524,0.06,197.98,197.96,38.05]
[1753162699650,0.06,197.98,197.96,37.36]
[1753162700142,11.09885386,197.97,197.93,37.3]
[1753162700456,0.06,197.98,197.96,11.09885386]
[1753162700620,0.06,197.98,197.97,48.39885386]
[1753162700946,0.06,197.98,197.97,49.08885386]
[1753162701640,0.06,197.98,197.97,54.14012425]
[1753162703142,0.06,197.98,197.91,38.63200444]
[1753162703346,0.06,197.98,197.93,0.69]
[1753162703555,11.15885386,197.98,197.93,0.69]
[1753162704223,0.06,197.98,197.94,0.69]
[1753162704416,0.06,197.98,197.95,37.28]
[1753162704652,11.09885386,197.96,197.89,11.09885386]
[1753162704825,11.09885386,197.96,197.87,0.69]
[1753162704826,11.09885386,197.94,197.9,37.26]
[1753162705143,11.09885386,197.93,197.9,37.26]
[1753162707055,16.78468397,197.9,197.81,11.09885386]
[1753162707257,11.09885386,197.87,197.86,37.22]
[1753162707433,11.09885386,197.88,197.86,37.22]
[1753162708053,16.78468397,197.92,197.86,37.22]
[1753162708260,27.88353783,197.92,197.87,0.69]
[1753162708423,11.09885386,197.91,197.86,37.22]
[1753162708753,11.09885386,197.87,197.8,0.69]
[1753162708955,11.09885386,197.87,197.81,37.22]
[1753162709124,11.09885386,197.87,197.81,48.31885386]
[1753162709833,11.09885386,197.86,197.8,0.69]
[1753162710150,11.09885386,197.85,197.82,37.2]
[1753162710444,11.09885386,197.84,197.82,37.2]
[1753162710654,27.88353783,197.83,197.82,37.2]
[1753162710957,16.78468397,197.82,197.78,37.2]
[1753162711251,37.09885386,197.79,197.75,37.2]
[1753162711485,11.09885386,197.81,197.76,0.69]
[1753162711821,11.09885386,197.81,197.77,0.69]
[1753162713258,16.78468397,197.83,197.75,42.25667671]
[1753162713449,26.0,197.84,197.79,11.09885386]
[1753162713637,11.09885386,197.85,197.8,37.87]
[1753162713835,16.78468397,197.86,197.8,42.92560815]
[1753162714034,11.09885386,197.85,197.8,42.92560815]
[1753162714455,11.09885386,197.85,197.81,0.69]
[1753162715056,11.09885386,197.87,197.82,0.69]
[1753162715636,11.09885386,197.87,197.8,53.33446201]
[1753162715831,11.09885386,197.87,197.81,11.09885386]
[1753162716037,16.15272747,197.87,197.8,53.33446201]
[1753162716259,11.09885386,197.86,197.8,42.23560815]
[1753162716740,11.09885386,197.86,197.8,37.18]
[1753162716944,11.09885386,197.86,197.8,42.23547171]
[1753162717163,11.09885386,197.86,197.8,53.33432557]
[1753162717345,16.78468397,197.87,197.82,11.09885386]
[1753162717661,26.0,197.9,197.83,11.78885386]
[1753162717963,16.78468397,197.89,197.84,37.12]
[1753162718269,16.78468397,197.9,197.84,53.27339535]
[1753162718452,0.06,197.87,197.84,53.27339535]
[1753162718637,0.06,197.87,197.85,0.66]
[1753162719068,0.06,197.87,197.84,37.12]
[1753162719266,0.06,197.87,197.84,37.78]
[1753162719568,0.06,197.87,197.84,53.27341353]
[1753162719735,0.06,197.87,197.85,11.75885386]
[1753162720053,0.06,197.87,197.86,5.05407864]
[1753162720242,0.06,197.87,197.86,16.8129325]
[1753162721755,0.06,197.87,197.86,5.71407864]
[1753162721961,0.06,197.87,197.86,0.66]
[1753162722680,0.06,197.87,197.82,0.66]
[1753162722877,0.06,197.87,197.83,37.1]
[1753162723752,0.06,197.87,197.83,42.15481792]
[1753162724091,11.15885386,197.87,197.83,42.15481792]
[1753162724577,11.09885386,197.84,197.83,37.1]
[1753162725087,11.09885386,197.86,197.83,37.1]
[1753162725556,11.09885386,197.84,197.83,37.1]
[1753162726255,11.09885386,197.84,197.78,5.71608322]
[1753162726564,11.09885386,197.81,197.79,37.08]
[1753162726764,11.09885386,197.8,197.79,37.08]
[1753162727659,0.06,197.87,197.79,37.08]
[1753162727660,11.09885386,197.85,197.79,37.74]
[1753162727869,11.09885386,197.82,197.8,37.1]
[1753162728161,11.09885386,197.81,197.79,37.1]
[1753162728368,11.09885386,197.8,197.79,37.1]
[1753162728865,11.09885386,197.81,197.79,37.1]
[1753162729184,7.35951254,197.81,197.79,37.1]
[1753162729670,7.35951254,197.84,197.8,0.66]
[1753162729883,7.35951254,197.85,197.81,5.71513589]
[1753162730072,7.35951254,197.85,197.82,37.1]
[1753162731277,7.35951254,197.85,197.82,32.2836]
[1753162732174,7.35951254,197.84,197.82,32.2836]
[1753162732381,7.35951254,197.83,197.82,32.2836]
[1753162732757,7.35951254,197.84,197.82,32.2836]
[1753162733360,16.78468397,197.82,197.75,0.66]
[1753162733679,7.35951254,197.78,197.74,0.03]
[1753162733885,49.07088397,197.82,197.75,37.1]
[1753162734060,7.35951254,197.8,197.75,37.1]
[1753162734257,7.35951254,197.8,197.76,5.0566343]
[1753162734480,7.35951254,197.8,197.76,5.7166343]
[1753162734860,49.07088397,197.82,197.77,0.66]
[1753162735188,16.78468397,197.76,197.74,0.03]
[1753162735370,24.14419651,197.75,197.74,0.03]
[1753162735679,24.82419651,197.75,197.74,0.03]
[1753162736391,29.88108652,197.75,197.74,0.03]
[1753162737167,33.49670981,197.75,197.74,0.03]
[1753162739058,32.81670981,197.75,197.74,0.03]
[1753162740490,33.49670981,197.75,197.74,0.03]
[1753162740661,42.53683881,197.82,197.74,0.69]
[1753162740662,16.78468397,197.8,197.74,0.69]
[1753162740862,16.78468397,197.78,197.74,0.69]
[1753162741082,10.97513583,197.78,197.74,0.03]
[1753162741270,53.7598198,197.75,197.74,0.03]
[1753162741472,27.7598198,197.75,197.74,0.03]
[1753162741777,10.97513583,197.79,197.74,0.69]
[1753162741988,10.97513583,197.75,197.74,0.03]
[1753162742163,27.7598198,197.75,197.74,0.03]
[1753162742363,33.49670981,197.75,197.74,0.03]
[1753162742561,32.81670981,197.75,197.74,0.03]
[1753162742978,33.49670981,197.75,197.74,0.03]
[1753162743384,70.59670981,197.75,197.74,0.03]
[1753162743898,42.78468397,197.71,197.68,0.03]
[1753162744065,95.9177329,197.71,197.68,0.03]
[1753162744266,96.5977329,197.71,197.68,0.03]
[1753162746186,27.7598198,197.71,197.68,0.03]
[1753162746490,53.7598198,197.71,197.68,0.03]
[1753162746865,27.7598198,197.71,197.68,0.03]
[1753162747497,33.4977329,197.71,197.68,0.03]
[1753162748700,21.84259707,197.71,197.68,0.03]
[1753162748870,16.78468397,197.71,197.68,0.03]
[1753162749069,27.7598198,197.71,197.68,0.03]
[1753162749793,10.97513583,197.72,197.7,0.72]
[1753162749978,10.97513583,197.72,197.7,0.03]
[1753162750495,10.97513583,197.74,197.71,0.69]
[1753162750695,21.8412175,197.77,197.7,0.03]
[1753162750865,10.97513583,197.75,197.71,0.69]
[1753162751070,10.97513583,197.74,197.7,0.03]
[1753162751290,36.97513583,197.74,197.7,0.72]
[1753162751504,10.97513583,197.72,197.7,0.03]
[1753162751669,27.7598198,197.71,197.7,0.03]
[1753162752582,10.97513583,197.73,197.7,0.72]
[1753162752805,54.4798198,197.71,197.7,0.03]
[1753162753006,91.5798198,197.71,197.7,0.03]
[1753162753195,23.01488397,197.7,197.68,0.03]
[1753162753513,27.7598198,197.69,197.68,0.03]
[1753162753920,10.97513583,197.69,197.68,0.03]
[1753162754212,10.97513583,197.74,197.69,5.0584248]
[1753162754408,10.97513583,197.74,197.7,0.69]
[1753162754608,10.97513583,197.73,197.7,0.69]
[1753162755183,16.78468397,197.75,197.68,5.08863403]
[1753162755391,10.97513583,197.77,197.71,0.69]
[1753162755615,10.97513583,197.73,197.71,0.69]
[1753162755795,37.1,197.78,197.68,0.03]
[1753162755796,10.97513583,197.72,197.68,0.03]
[1753162755999,27.7598198,197.69,197.68,0.03]
[1753162756424,10.97513583,197.71,197.68,0.72]
[1753162756599,10.97513583,197.71,197.69,0.69]
[1753162756798,27.7598198,197.7,197.68,0.03]
[1753162757122,10.97513583,197.69,197.68,0.03]
[1753162758393,33.5382446,197.69,197.68,0.03]
[1753162759016,44.51338043,197.69,197.68,0.03]
[1753162759619,44.51338043,197.69,197.68,1e-08]
[1753162759817,16.78468397,197.67,197.66,1e-08]
[1753162759993,42.78468397,197.64,197.6,0.2]
[1753162760195,53.7598198,197.61,197.6,0.2]
[1753162760504,32.82029244,197.61,197.6,0.2]
[1753162760813,33.54029244,197.61,197.6,0.2]
[1753162761028,39.78359244,197.61,197.6,1e-08]
[1753162761594,76.88359244,197.61,197.6,1e-08]
[1753162762598,42.78468397,197.57,197.56,0.03]
[1753162762907,90.8798198,197.57,197.56,0.03]
[1753162763117,91.5998198,197.57,197.56,0.03]
[1753162763431,90.8798198,197.57,197.56,0.03]
[1753162763604,42.78468397,197.57,197.56,0.03]
[1753162763807,53.7598198,197.57,197.56,0.03]
[1753162764524,58.82131699,197.57,197.56,0.03]
[1753162764730,59.54131699,197.57,197.56,0.03]
[1753162764937,27.7598198,197.55,197.54,0.2]
[1753162765141,64.8798198,197.55,197.54,0.2]
[1753162765320,76.57495563,197.55,197.54,0.2]
[1753162766210,65.5998198,197.55,197.54,0.2]
[1753162766406,76.57495563,197.55,197.54,0.2]
[1753162766709,81.63696524,197.55,197.54,0.2]
[1753162767118,67.07179206,197.55,197.54,0.2]
[1753162767320,16.78468397,197.54,197.52,0.03]
[1753162767519,61.28978245,197.53,197.52,0.03]
[1753162767927,62.00978245,197.53,197.52,0.03]
[1753162768304,42.78468397,197.49,197.44,0.03]
[1753162768503,50.16978245,197.49,197.44,0.03]
[1753162768723,55.95332997,197.49,197.44,0.03]
[1753162769127,74.85459877,197.49,197.44,0.03]
[1753162769329,50.16978245,197.45,197.44,0.03]
[1753162769504,87.28978245,197.45,197.44,0.03]
[1753162769707,50.16978245,197.45,197.44,0.03]
[1753162770641,55.23435575,197.45,197.44,0.03]
[1753162770937,92.35435575,197.45,197.44,0.03]
[1753162771611,87.28978245,197.45,197.44,0.03]
[1753162771830,16.78468397,197.48,197.44,0.72]
[1753162772034,16.78468397,197.5,197.45,0.69]
[1753162772233,24.16978245,197.48,197.46,0.69]
[1753162772721,16.78468397,197.46,197.44,0.03]
[1753162773034,26.0,197.46,197.45,0.69]
[1753162773235,16.78468397,197.47,197.45,0.69]
[1753162773539,16.78468397,197.47,197.46,0.69]
[1753162774109,16.78468397,197.47,197.44,0.03]
[1753162774340,16.78468397,197.47,197.45,0.69]
[1753162775134,16.78468397,197.47,197.46,0.69]
[1753162775343,26.0,197.5,197.46,0.69]
[1753162775525,26.0,197.5,197.46,8.07509848]
[1753162775849,26.0,197.5,197.47,0.69]
[1753162776140,16.78468397,197.47,197.44,0.72]
[1753162776341,50.16978245,197.45,197.44,0.03]
[1753162777332,7.38509848,197.47,197.44,0.72]
[1753162777520,7.38509848,197.47,197.45,0.69]
[1753162778229,42.78468397,197.49,197.45,0.69]
[1753162778437,26.0,197.49,197.46,0.67]
[1753162778743,26.0,197.49,197.47,0.67]
[1753162778949,7.38509848,197.51,197.48,0.67]
[1753162779241,7.38509848,197.55,197.49,7.38509848]
[1753162779410,16.78468397,197.54,197.5,0.67]
[1753162779615,16.78468397,197.54,197.51,0.67]
[1753162779616,33.38509848,197.54,197.51,0.67]
[1753162780142,7.38509848,197.54,197.51,0.67]
[1753162780352,7.38509848,197.52,197.47,37.81]
[1753162780654,7.38509848,197.52,197.48,0.67]
[1753162780821,7.38509848,197.52,197.47,37.14]
[1753162781020,7.38509848,197.52,197.49,0.67]
[1753162781550,16.78468397,197.49,197.44,0.7]
[1753162781722,7.38509848,197.48,197.44,0.7]
[1753162781924,33.38509848,197.51,197.45,7.38509848]
[1753162782118,7.38509848,197.5,197.46,0.67]
[1753162782338,7.38509848,197.48,197.46,0.67]
[1753162782926,7.38509848,197.49,197.46,0.67]
[1753162783228,7.38509848,197.49,197.47,0.67]
[1753162783557,26.0,197.51,197.45,5.064498]
[1753162783727,26.0,197.51,197.48,0.67]
[1753162784044,16.78468397,197.5,197.45,5.734498]
[1753162784246,16.78468397,197.5,197.48,0.67]
[1753162784819,33.38509848,197.51,197.47,5.06387989]
[1753162784820,26.0,197.51,197.49,0.67]
[1753162785050,7.38509848,197.53,197.5,0.67]
[1753162785236,50.16978245,197.55,197.51,0.67]
[1753162785543,7.44509848,197.56,197.52,0.67]
[1753162785746,7.38509848,197.54,197.47,5.06387989]
[1753162785949,7.38509848,197.52,197.48,0.67]
[1753162786338,7.38509848,197.53,197.49,5.73351457]
[1753162786647,24.16978245,197.53,197.5,0.67]
[1753162786825,24.16978245,197.53,197.51,0.67]
[1753162787322,7.38509848,197.52,197.47,0.67]
[1753162787523,7.38509848,197.51,197.48,0.67]
[1753162788956,7.38509848,197.5,197.46,42.2043146]
[1753162789123,7.38509848,197.48,197.46,37.14]
[1753162789325,7.38509848,197.47,197.44,0.03]
[1753162789545,42.78468397,197.45,197.44,0.03]
[1753162789745,50.16978245,197.45,197.44,0.03]
[1753162790266,16.78468397,197.47,197.44,0.7]
[1753162790557,7.38509848,197.48,197.44,0.7]
[1753162790846,7.38509848,197.48,197.45,0.67]
[1753162791047,7.38509848,197.46,197.44,0.03]
[1753162791631,50.16978245,197.45,197.44,0.03]
[1753162791950,50.85978245,197.45,197.44,0.03]
[1753162792452,24.85978245,197.45,197.44,0.03]
[1753162792631,29.92435575,197.45,197.44,0.03]
[1753162793027,55.92435575,197.45,197.44,0.03]
[1753162793335,29.92435575,197.45,197.44,0.03]
[1753162793537,29.92435575,197.45,197.4,0.2]
[1753162793538,16.78468397,197.41,197.4,0.2]
[1753162793744,24.16978245,197.41,197.4,0.2]
[1753162793938,24.85978245,197.41,197.4,0.2]
[1753162794148,32.24488093,197.41,197.4,0.2]
[1753162794534,21.8513101,197.37,197.29,0.67]
[1753162794738,21.8513101,197.37,197.24,1.714]
[1753162794739,66.35640858,197.37,197.25,37.12]
[1753162795048,66.35640858,197.37,197.24,5.26973922]
[1753162795049,16.78468397,197.33,197.24,5.26973922]
[1753162795257,7.38509848,197.28,197.24,5.26973922]
[1753162795565,24.16978245,197.25,197.24,0.2]
[1753162795950,16.78468397,197.25,197.24,0.2]
[1753162796156,7.38509848,197.25,197.24,0.2]
[1753162797166,11.02846955,197.25,197.24,0.2]
[1753162797333,11.61846955,197.25,197.24,0.2]
[1753162797734,16.78468397,197.17,197.14,0.03]
[1753162797936,11.02846955,197.16,197.14,0.03]
[1753162798142,27.81315352,197.15,197.14,0.03]
[1753162798353,26.0,197.18,197.14,0.03]
[1753162798561,11.02846955,197.15,197.14,0.7]
[1753162798869,27.81315352,197.18,197.14,0.7]
[1753162799080,11.02846955,197.17,197.14,0.7]
[1753162799251,11.02846955,197.15,197.14,0.03]
[1753162800458,27.81315352,197.18,197.14,0.7]
[1753162800639,58.8854335,197.15,197.14,0.03]
[1753162800962,6.0577,197.17,197.1,6.45949485]
[1753162801166,27.81315352,197.16,197.11,0.67]
[1753162801367,11.02846955,197.2,197.13,11.02846955]
[1753162801596,16.78468397,197.21,197.15,11.02846955]
[1753162801870,11.02846955,197.19,197.14,0.67]
[1753162802049,16.78468397,197.25,197.16,11.02846955]
[1753162802250,11.02846955,197.23,197.17,11.69846955]
[1753162802469,1.5905,197.31,197.2,11.02846955]
[1753162802470,11.02846955,197.27,197.2,11.02846955]
[1753162802642,11.02846955,197.28,197.22,16.09894921]
[1753162802967,11.02846955,197.3,197.23,11.69846955]
[1753162803148,11.02846955,197.3,197.24,0.67]
[1753162803149,16.78468397,197.29,197.24,0.67]
[1753162803459,11.02846955,197.3,197.24,0.67]
[1753162803460,16.78468397,197.27,197.24,0.67]
[1753162803859,27.81315352,197.27,197.24,0.67]
[1753162804060,27.81315352,197.27,197.14,42.78468397]
[1753162804061,27.81315352,197.25,197.19,0.67]
[1753162804258,42.78468397,197.23,197.2,0.67]
[1753162804467,42.78468397,197.23,197.21,0.67]
[1753162804658,26.0,197.23,197.21,0.67]
[1753162804860,16.78468397,197.26,197.19,5.07110385]
[1753162804861,27.81315352,197.26,197.22,0.67]
[1753162805054,11.02846955,197.25,197.18,11.02846955]
[1753162805249,11.02846955,197.25,197.19,0.67]
[1753162805450,37.02846955,197.26,197.2,11.02846955]
[1753162805650,25.5,197.26,197.21,11.69846955]
[1753162805864,16.78468397,197.28,197.22,11.69846955]
[1753162806066,11.02846955,197.28,197.22,11.69846955]
[1753162806255,16.78468397,197.28,197.23,0.67]
[1753162806469,11.02846955,197.29,197.24,0.67]
[1753162806671,16.78468397,197.29,197.25,5.06970849]
[1753162806868,27.81315352,197.29,197.26,0.67]
[1753162807065,0.06,197.28,197.24,0.67]
[1753162807268,11.08846955,197.28,197.24,0.67]
[1753162807465,0.06,197.28,197.24,0.67]
[1753162807782,11.02846955,197.27,197.21,5.74070496]
[1753162808276,11.02846955,197.24,197.18,5.07149461]
[1753162808475,11.02846955,197.24,197.18,16.80996416]
[1753162808657,26.0,197.25,197.2,16.09946346]
[1753162808864,16.78468397,197.27,197.22,11.02846955]
[1753162809064,16.78468397,197.27,197.2,5.07099391]
[1753162809367,16.78468397,197.27,197.23,0.71]
[1753162809570,16.78468397,197.27,197.24,0.71]
[1753162810661,16.78468397,197.27,197.22,5.07047966]
[1753162810662,11.02846955,197.27,197.22,5.07047966]
[1753162810858,11.02846955,197.27,197.23,0.71]
[1753162811072,11.02846955,197.25,197.19,0.71]
[1753162811281,11.02846955,197.25,197.19,5.78110534]
[1753162811482,0.06,197.28,197.23,11.02846955]
[1753162811789,0.06,197.28,197.24,0.71]
[1753162811984,0.06,197.28,197.27,11.02846955]
[1753162812288,0.06,197.28,197.27,11.73846955]
[1753162812669,0.06,197.28,197.27,5.7791945]
[1753162812963,0.06,197.28,197.27,0.71]
[1753162813168,0.06,197.28,197.25,16.09800448]
[1753162813473,0.06,197.28,197.26,0.71]
[1753162813879,0.06,197.28,197.27,0.71]
[1753162814389,0.06,197.28,197.24,37.16]
[1753162814390,0.06,197.28,197.24,53.96840507]
[1753162814594,0.06,197.28,197.24,53.25840507]
[1753162814783,0.06,197.28,197.26,5.77942917]
[1753162815173,0.06,197.28,197.27,11.73846955]
[1753162816769,0.06,197.28,197.27,0.71]
[1753162816971,0.06,197.28,197.27,42.9391945]
[1753162817371,0.06,197.28,197.27,50.33492594]
[1753162817886,0.06,197.28,197.27,37.87]
[1753162818470,0.06,197.28,197.24,0.71]
[1753162818662,0.06,197.28,197.25,42.22953129]
[1753162818878,0.06,197.28,197.26,0.71]
[1753162819271,0.06,197.28,197.27,0.71]
[1753162819479,0.06,197.28,197.25,42.22953129]
[1753162819660,0.06,197.28,197.26,0.71]
[1753162820773,0.06,197.28,197.25,37.16]
[1753162821087,7.45573144,197.28,197.25,37.16]
[1753162821291,0.06,197.28,197.25,37.87]
[1753162821763,6.95573144,197.29,197.25,37.16]
[1753162821959,6.95573144,197.29,197.25,37.87]
[1753162822865,6.95573144,197.29,197.25,37.16]
[1753162823067,0.06,197.32,197.28,7.39573144]
[1753162823283,1.6032,197.43,197.31,7.39573144]
[1753162823284,7.39573144,197.4,197.31,7.39573144]
[1753162823590,7.39573144,197.35,197.32,0.71]
[1753162823790,7.39573144,197.36,197.32,37.85]
[1753162824128,16.78468397,197.33,197.32,37.14]
[1753162824991,7.39573144,197.33,197.32,37.14]
[1753162825179,24.18041541,197.33,197.32,37.14]
[1753162825380,7.39573144,197.35,197.32,37.14]
[1753162825699,7.39573144,197.36,197.33,0.71]
[1753162825878,16.78468397,197.38,197.33,8.10573144]
[1753162826086,16.78468397,197.38,197.34,0.71]
[1753162826396,7.39573144,197.39,197.35,0.71]
[1753162826570,7.39573144,197.39,197.36,37.14]
[1753162827090,7.39573144,197.37,197.35,37.14]
[1753162827261,24.18041541,197.37,197.34,37.14]
[1753162827793,29.24704797,197.37,197.34,37.14]
[1753162827988,24.18041541,197.37,197.34,37.14]
[1753162828188,16.78468397,197.37,197.35,0.71]
[1753162828396,5.06534292,197.42,197.36,0.71]
[1753162828572,24.18041541,197.42,197.36,0.71]
[1753162828773,16.78468397,197.43,197.38,7.39573144]
[1753162828992,83.3640866,197.47,197.39,37.85]
[1753162829191,0.06,197.41,197.4,5.77585612]
[1753162829407,6.2986,197.49,197.4,13.17158756]
[1753162829698,7.39573144,197.46,197.4,5.77585612]
[1753162830184,16.78468397,197.48,197.4,5.77585612]
[1753162830386,7.39573144,197.46,197.4,5.77585612]
[1753162830586,16.78468397,197.46,197.4,13.17158756]
[1753162830986,16.78468397,197.46,197.41,8.10573144]
[1753162831173,16.78468397,197.48,197.42,7.39573144]
[1753162831373,16.78468397,197.48,197.43,37.85]
[1753162831572,16.78468397,197.48,197.44,0.71]
[1753162831794,16.78468397,197.5,197.45,0.71]
[1753162832097,2.2341,197.54,197.43,37.14]
[1753162832098,5.06200961,197.55,197.46,8.10573144]
[1753162832301,7.39573144,197.54,197.47,44.51573144]
[1753162832594,16.78468397,197.51,197.48,37.12]
[1753162832803,16.78468397,197.51,197.49,37.12]
[1753162833182,7.45573144,197.56,197.5,0.71]
[1753162833396,24.24041541,197.56,197.5,0.71]
[1753162833576,0.06,197.56,197.51,7.39573144]
[1753162833990,7.39573144,197.55,197.51,37.12]
[1753162834497,0.06,197.56,197.52,0.71]
[1753162834699,0.06,197.56,197.53,0.71]
[1753162835074,0.06,197.56,197.54,0.71]
[1753162835270,0.06,197.56,197.55,37.12]
[1753162836294,0.06,197.56,197.54,37.12]
[1753162836596,0.06,197.56,197.51,0.71]
[1753162836597,16.78468397,197.52,197.46,37.83]
[1753162836800,16.78468397,197.48,197.46,37.12]
[1753162837678,16.78468397,197.46,197.39,7.39573144]
[1753162837901,16.78468397,197.46,197.4,37.12]
[1753162837902,7.39573144,197.45,197.4,37.12]
[1753162838098,7.39573144,197.42,197.38,0.71]
[1753162838280,7.39573144,197.42,197.38,37.12]
[1753162838794,12.46111735,197.42,197.38,37.12]
[1753162839130,12.46111735,197.42,197.38,37.79]
[1753162839401,5.06538591,197.42,197.38,37.12]
[1753162839602,11.00651795,197.41,197.38,37.12]
[1753162841699,21.8492757,197.45,197.38,42.18620706]
[1753162841883,11.00651795,197.48,197.42,11.00651795]
[1753162842081,11.00651795,197.49,197.43,48.79651795]
[1753162842507,16.78468397,197.48,197.43,48.79651795]
[1753162842805,16.78468397,197.43,197.36,0.67]
[1753162842995,11.00651795,197.4,197.37,37.12]
[1753162843199,11.00651795,197.4,197.37,37.79]
[1753162843397,11.00651795,197.43,197.38,0.67]
[1753162843602,11.00651795,197.43,197.39,0.67]
[1753162843795,11.00651795,197.43,197.4,0.67]
[1753162843989,11.00651795,197.42,197.37,37.79]
[1753162844603,11.00651795,197.4,197.37,37.12]
[1753162844910,16.07276579,197.39,197.37,37.12]
[1753162845084,27.79120192,197.38,197.37,37.12]
[1753162845285,27.79120192,197.38,197.34,37.1]
[1753162845497,11.00651795,197.37,197.34,37.1]
[1753162846185,16.78468397,197.34,197.28,0.67]
[1753162846387,27.79120192,197.34,197.29,37.1]
[1753162846590,0.68,197.37,197.29,37.1]
[1753162846591,16.78468397,197.31,197.29,37.1]
[1753162846799,11.00651795,197.32,197.29,37.77]
[1753162847205,16.78468397,197.32,197.29,37.77]
[1753162847817,27.79120192,197.32,197.29,37.77]
[1753162848109,11.68651795,197.31,197.24,16.07642514]
[1753162848317,11.00651795,197.31,197.25,37.12]
[1753162848612,11.00651795,197.29,197.25,37.12]
[1753162848822,11.00651795,197.29,197.25,37.79]
[1753162849121,21.85308439,197.31,197.26,0.67]
[1753162849314,16.78468397,197.29,197.26,0.67]
[1753162849502,27.79120192,197.29,197.25,37.12]
[1753162849700,0.68,197.37,197.28,11.00651795]
[1753162850010,11.00651795,197.37,197.3,11.00651795]
[1753162850190,16.78468397,197.36,197.31,11.67651795]
[1753162850385,16.78468397,197.37,197.31,11.00651795]
[1753162850585,16.78468397,197.37,197.32,37.79]
[1753162850791,16.78468397,197.38,197.33,16.74412105]
[1753162851025,16.78468397,197.38,197.34,0.67]
[1753162851520,27.79120192,197.38,197.32,37.12]
[1753162852194,11.00651795,197.36,197.32,37.12]